bitfinex/quotes_ETHUSD_20241109
["timestamp","ask_amount","ask_price","bid_price","bid_amount"]
[1731125476647,0.7694,2968.1,2967.3,0.06739175]
[1731125476847,0.7694,2968.1,2967.3,0.48477033]
[1731125478187,0.7694,2968.1,2967.3,0.55216211]
[1731125478383,0.7694,2968.1,2967.3,0.48477033]
[1731125481585,0.7694,2968.1,2966.9,1.39160437]
[1731125481792,0.7694,2968.1,2967.0,0.06739376]
[1731125482151,0.7694,2968.1,2966.9,1.32420956]
[1731125483383,0.7694,2968.1,2967.1,1.32420956]
[1731125483561,0.7694,2968.1,2967.2,0.7935]
[1731125483766,0.7694,2968.1,2967.3,0.21177096]
[1731125484279,0.7694,2968.1,2967.4,0.06738918]
[1731125484487,0.7694,2968.1,2967.3,0.21177096]
[1731125485662,0.7694,2968.1,2967.3,3.21177096]
[1731125485855,0.7694,2968.1,2967.4,0.06738422]
[1731125486373,0.7694,2968.1,2967.3,0.21177096]
[1731125486572,0.7694,2968.1,2967.3,1.53598052]
[1731125486873,0.7694,2968.1,2967.4,0.23294805]
[1731125487879,0.7694,2968.1,2967.2,0.7935]
[1731125489199,0.7694,2968.1,2967.1,1.32420956]
[1731125490701,0.7694,2968.1,2967.3,1.32420956]
[1731125491500,0.7694,2968.1,2967.1,1.45128977]
[1731125491699,0.7694,2968.1,2967.1,1.32420956]
[1731125491864,0.7694,2968.1,2967.2,0.21277096]
[1731125492198,0.7694,2968.1,2967.3,3.0]
[1731125492506,0.7694,2968.1,2967.2,0.21277096]
[1731125494307,0.7694,2968.1,2966.9,0.12475743]
[1731125494514,0.7694,2968.1,2966.8,1.32420956]
[1731125494661,0.8296,2967.9,2966.6,0.7935]
[1731125494866,0.8296,2967.9,2966.7,1.32420956]
[1731125495068,0.8296,2967.9,2966.8,0.51177096]
[1731125495304,0.8296,2967.9,2966.7,1.32420956]
[1731125499804,0.70378868,2968.2,2966.5,0.46379053]
[1731125499805,0.7577,2967.7,2966.5,4.32420956]
[1731125500011,0.7577,2967.7,2966.5,1.32420956]
[1731125500429,0.7577,2967.5,2966.3,0.92452337]
[1731125500728,0.7577,2967.3,2966.3,1.32420956]
[1731125504016,0.7577,2967.3,2966.0,0.47379053]
[1731125504017,0.7577,2966.9,2966.0,3.0]
[1731125504249,0.7577,2966.9,2965.8,1.44912469]
[1731125504431,0.7577,2966.9,2965.8,1.32420956]
[1731125505137,0.7577,2966.9,2965.6,0.8102]
[1731125505138,0.7577,2966.9,2965.7,1.32420956]
[1731125505338,0.20819096,2966.9,2965.7,1.32420956]
[1731125505535,0.7577,2966.7,2965.5,0.46379053]
[1731125505737,0.7577,2966.7,2965.6,1.32420956]
[1731125505953,0.7577,2966.5,2965.3,1.32420956]
[1731125506149,0.7577,2966.5,2965.0,0.47379053]
[1731125506335,0.7577,2966.4,2965.0,0.01]
[1731125506535,0.7577,2966.4,2965.3,1.32420956]
[1731125507152,0.7577,2966.4,2965.1,1.26399053]
[1731125507153,1.32420956,2966.4,2965.1,0.46379053]
[1731125507306,0.7577,2966.3,2965.2,1.32420956]
[1731125507517,0.7577,2966.1,2965.1,1.32420956]
[1731125507713,0.70378868,2966.8,2964.8,8.63399053]
[1731125507714,1.32420956,2966.0,2964.8,7.36]
[1731125507945,0.71378868,2966.8,2965.0,1.32420956]
[1731125507946,0.7577,2965.9,2965.0,1.32420956]
[1731125509624,0.7577,2965.9,2964.8,1.32420956]
[1731125510553,1.32420956,2965.8,2964.8,1.32420956]
[1731125510718,1.32420956,2965.8,2964.6,1.32420956]
[1731125510719,0.7577,2965.6,2964.6,1.32420956]
[1731125510919,0.7577,2965.5,2964.4,1.32420956]
[1731125511123,0.7577,2965.3,2964.2,1.32420956]
[1731125512030,0.7577,2965.1,2964.0,0.12889908]
[1731125512278,0.7577,2965.1,2963.8,8.1602]
[1731125512279,0.7577,2965.1,2963.9,1.32420956]
[1731125512421,0.7577,2965.1,2963.9,4.32420956]
[1731125512959,0.7577,2965.1,2963.9,3.0]
[1731125513129,0.7577,2964.9,2963.9,4.32420956]
[1731125513319,0.7577,2964.9,2963.3,1.32421]
[1731125513320,2.87449911,2964.9,2963.3,0.8002]
[1731125513529,0.7577,2964.8,2963.3,1.26399053]
[1731125513835,0.7577,2964.6,2963.4,0.41384896]
[1731125514268,0.7577,2964.4,2963.4,0.41384896]
[1731125514449,0.7577,2964.4,2962.9,0.06747928]
[1731125514762,0.7577,2964.4,2962.6,4.1862802]
[1731125515559,0.7577,2964.4,2962.7,3.0]
[1731125516437,0.7577,2964.4,2962.8,0.06747932]
[1731125516633,0.7577,2964.4,2962.9,3.18124704]
[1731125516634,0.7577,2964.3,2962.9,3.18124704]
[1731125516834,0.7577,2964.3,2963.0,3.06747933]
[1731125518364,0.7577,2964.3,2963.3,3.0]
[1731125522889,0.7577,2964.3,2963.6,3.0]
[1731125523089,0.7577,2964.3,2963.4,3.0]
[1731125523259,0.7577,2964.3,2963.5,0.58744991]
[1731125527254,0.7577,2964.3,2963.6,0.06747805]
[1731125527553,0.7577,2964.3,2963.5,0.58744991]
[1731125527754,0.7577,2964.3,2963.6,0.06747804]
[1731125529430,0.7577,2964.3,2963.5,0.65492265]
[1731125529703,0.7577,2964.3,2963.6,0.36549227]
[1731125529861,0.7577,2964.3,2963.7,0.06747168]
[1731125530420,0.7577,2964.3,2963.7,3.0]
[1731125531617,0.7577,2964.3,2964.0,3.0]
[1731125531826,0.7577,2964.3,2964.1,0.06746535]
[1731125532029,0.7577,2964.3,2964.2,0.29419645]
[1731125542981,0.7577,2964.3,2963.8,3.0]
[1731125543384,0.7577,2964.3,2964.0,1.32616137]
[1731125543631,0.7577,2964.3,2964.1,0.067467]
[1731125543779,3.0,2965.6,2964.1,0.067467]
[1731125544117,0.7728,2965.4,2964.5,1.32616137]
[1731125544483,0.7728,2965.4,2964.7,1.32616137]
[1731125544980,0.7728,2965.4,2964.9,1.32616137]
[1731125545322,0.7728,2965.4,2964.9,2.87124715]
[1731125545528,0.7728,2965.4,2965.0,3.0]
[1731125547546,0.7728,2965.4,2964.2,0.8172]
[1731125547743,0.7728,2965.4,2964.4,3.0]
[1731125547914,0.7728,2965.4,2964.5,0.58712472]
[1731125549505,0.7728,2965.4,2964.0,2.87124715]
[1731125550511,0.7728,2965.4,2964.1,0.06745808]
[1731125550726,0.7728,2965.4,2964.0,2.87124715]
[1731125551245,0.7728,2965.4,2964.1,3.0]
[1731125552021,0.7728,2965.4,2964.2,0.06745807]
[1731125552212,0.7728,2965.4,2964.3,0.30674581]
[1731125552988,0.7728,2965.4,2964.3,0.37420387]
[1731125553295,0.7728,2965.4,2964.3,0.30674581]
[1731125554135,0.7728,2965.4,2964.2,3.0]
[1731125554334,0.7728,2965.4,2964.1,2.87124715]
[1731125554335,0.7728,2965.4,2963.8,0.1276433]
[1731125554485,0.7728,2965.4,2964.1,3.0]
[1731125555122,0.7728,2965.4,2963.6,3.8272]
[1731125555286,0.7728,2965.2,2963.6,3.95120312]
[1731125555483,0.7728,2965.2,2963.9,3.0]
[1731125561100,0.55,2965.1,2963.9,3.0]
[1731125561439,0.8105,2965.0,2963.9,3.0]
[1731125563945,0.8105,2965.0,2964.0,0.06746482]
[1731125564241,0.8105,2965.0,2964.2,3.0]
[1731125564546,0.7861,2964.8,2963.0,7.71201145]
[1731125564770,0.7861,2964.7,2963.1,0.41501615]
[1731125565068,0.7861,2964.5,2963.1,0.41501615]
[1731125565242,0.55,2964.3,2963.0,0.35201145]
[1731125565429,0.7861,2964.2,2963.0,0.35201145]
[1731125565871,0.7861,2964.0,2963.0,0.35201145]
[1731125568042,0.55,2963.9,2963.0,0.35201145]
[1731125568259,0.7861,2963.8,2963.0,0.35201145]
[1731125568934,0.7861,2963.8,2962.6,0.50158109]
[1731125570980,0.7861,2963.8,2962.6,0.8517392]
[1731125571851,0.7861,2963.6,2962.6,0.50158109]
[1731125572427,0.55,2963.5,2962.6,0.50158109]
[1731125572764,0.7861,2963.4,2962.6,0.50158109]
[1731125575468,0.7861,2963.4,2962.7,0.06750141]
[1731125575686,0.7861,2963.4,2962.8,0.34403297]
[1731125576632,0.7861,2963.4,2962.9,2.87124715]
[1731125576893,0.7861,2963.4,2963.0,3.0]
[1731125577189,0.7861,2963.4,2963.1,0.06748787]
[1731125577357,0.7861,2963.4,2963.0,3.0]
[1731125577552,0.7861,2963.4,2963.1,0.58712472]
[1731125578854,0.7861,2963.4,2963.0,3.0]
[1731125578998,0.7861,2963.4,2962.8,0.34403297]
[1731125579959,0.7861,2963.4,2962.6,0.50158109]
[1731125587612,0.78515273,2963.4,2962.6,0.50158109]
[1731125590145,0.55,2963.3,2962.6,0.50158109]
[1731125590581,0.7889,2963.2,2962.6,0.50158109]
[1731125591194,0.55,2962.9,2962.6,0.50158109]
[1731125591392,0.7889,2962.8,2962.6,0.50158109]
[1731125594286,6.46,2964.1,2962.6,0.50158109]
[1731125594505,0.02,2964.2,2962.6,0.50158109]
[1731125594506,0.7889,2964.0,2962.6,0.50158109]
[1731125595092,0.7889,2964.0,2962.7,3.06749948]
[1731125595317,0.7889,2964.0,2962.8,0.64403277]
[1731125595628,0.7889,2964.0,2962.9,2.87124715]
[1731125596860,0.7889,2964.0,2962.8,0.64403277]
[1731125597122,0.55,2963.9,2962.6,6.37282824]
[1731125597321,0.7889,2963.8,2962.6,6.37282824]
[1731125597524,0.7889,2963.8,2962.6,3.50158109]
[1731125597751,0.7889,2963.6,2962.6,0.50158109]
[1731125598358,0.7889,2963.6,2962.7,0.35015811]
[1731125599434,0.7889,2963.6,2962.8,3.0]
[1731125603363,0.7889,2963.6,2962.9,0.8331]
[1731125603529,0.7889,2963.6,2963.0,2.87124715]
[1731125605017,0.7889,2963.6,2963.1,0.06749064]
[1731125605253,0.7889,2963.6,2963.2,0.29387378]
[1731125605698,0.7889,2963.6,2963.3,0.06748658]
[1731125605955,0.7763,2963.9,2963.3,2.93873373]
[1731125606118,0.7763,2963.9,2963.6,2.87124715]
[1731125606321,0.7763,2964.6,2963.7,0.3546044]
[1731125606625,0.7763,2964.6,2963.7,3.28712471]
[1731125607245,0.7763,2964.6,2963.4,3.0]
[1731125607719,0.55,2964.5,2963.4,3.0]
[1731125607918,0.55,2964.3,2963.4,3.0]
[1731125608320,0.7763,2964.2,2963.4,3.0]
[1731125608568,0.7763,2964.2,2963.1,3.0]
[1731125608717,0.55,2964.1,2963.0,2.87124715]
[1731125608922,0.7763,2964.0,2963.0,2.87124715]
[1731125609318,0.7763,2964.0,2963.0,3.24168186]
[1731125610380,0.7763,2963.8,2963.0,0.37043471]
[1731125610527,0.7763,2963.8,2962.8,3.0]
[1731125613184,0.7763,2963.6,2962.6,1.33468109]
[1731125613393,0.7763,2963.6,2962.6,3.50158109]
[1731125616063,0.7763,2963.6,2962.8,2.87124715]
[1731125616266,0.7763,2963.6,2962.9,0.29387439]
[1731125616672,0.7763,2963.6,2963.1,2.87124715]
[1731125618403,0.7763,2963.6,2963.2,0.06748648]
[1731125618606,0.70143394,2964.4,2963.2,0.06748648]
[1731125618607,0.8178,2964.3,2963.2,0.06748648]
[1731125618790,0.8178,2964.2,2963.2,0.06748648]
[1731125618969,0.8178,2964.2,2963.3,0.29387336]
[1731125619164,0.8178,2964.2,2963.4,0.06748238]
[1731125619369,0.8178,2964.2,2963.3,0.29387336]
[1731125621065,0.8178,2964.2,2963.4,0.06748239]
[1731125622713,0.8178,2964.2,2963.3,0.29387336]
[1731125623203,0.8178,2964.2,2962.9,0.29387439]
[1731125623427,0.8178,2964.2,2962.9,3.29387439]
[1731125624871,0.55,2964.1,2962.9,0.29387439]
[1731125625077,0.55,2963.9,2962.9,0.29387439]
[1731125625283,0.8178,2963.8,2962.9,0.29387439]
[1731125625702,0.8178,2963.8,2962.8,2.87124715]
[1731125628935,0.8178,2963.8,2962.9,0.06749217]
[1731125629125,0.8178,2963.8,2962.8,2.87124715]
[1731125630122,0.8178,2963.8,2962.9,0.06749216]
[1731125630324,0.8178,2963.8,2962.9,3.0]
[1731125630534,0.8178,2963.8,2963.0,0.58712472]
[1731125634289,0.8178,2963.8,2963.1,2.938735]
[1731125634623,0.8178,2963.8,2963.4,2.87124715]
[1731125634824,0.8178,2963.8,2963.5,0.06748079]
[1731125635126,0.8178,2963.8,2963.1,2.87124715]
[1731125635355,0.8178,2963.8,2963.2,3.42173719]
[1731125635513,0.8178,2963.8,2963.2,3.48921913]
[1731125636473,0.8178,2963.8,2963.2,3.42173719]
[1731125637223,0.8178,2963.8,2963.3,0.06748195]
[1731125637446,0.8178,2963.8,2963.2,3.42173719]
[1731125637616,0.8178,2963.8,2963.3,0.62929843]
[1731125638259,0.8178,2963.8,2963.2,3.0]
[1731125640275,0.8178,2963.8,2963.2,3.06748784]
[1731125640420,0.8178,2963.8,2963.2,3.0]
[1731125640623,0.8178,2963.8,2962.7,0.94812322]
[1731125640819,0.8178,2963.8,2963.0,3.0]
[1731125641037,0.8178,2963.8,2963.1,0.65461254]
[1731125641684,0.8178,2963.8,2963.1,0.58712472]
[1731125641842,0.8178,2963.8,2963.0,3.0]
[1731125648856,0.8178,2963.8,2963.1,0.06748773]
[1731125649055,0.8178,2963.8,2963.0,3.0]
[1731125649457,0.8178,2963.8,2963.1,0.06748773]
[1731125649743,0.8178,2963.8,2963.2,3.69074715]
[1731125649938,0.8178,2963.8,2963.3,3.44330442]
[1731125655455,0.8178,2963.8,2963.5,1.32675952]
[1731125655872,0.8178,2963.8,2963.7,1.32675952]
[1731125671264,0.7967,2964.5,2963.7,1.32675952]
[1731125671591,0.7967,2964.5,2964.2,1.32675952]
[1731125671791,0.7967,2964.5,2964.0,1.32675952]
[1731125684527,0.72369752,2964.5,2964.0,1.32675952]
[1731125685626,0.72369752,2964.5,2963.6,3.7617]
[1731125685921,0.72369752,2964.5,2964.2,1.32675952]
[1731125686223,0.72369752,2964.5,2963.8,3.0]
[1731125686424,0.72369752,2964.5,2963.9,1.32675952]
[1731125687815,0.72369752,2964.5,2963.7,1.17937]
[1731125688018,0.72369752,2964.5,2963.8,1.32675952]
[1731125688906,0.7776,2964.4,2963.3,1.32675952]
[1731125689096,0.7776,2964.4,2963.5,1.32675952]
[1731125689286,0.7776,2964.3,2963.5,1.32675952]
[1731125690543,0.7776,2964.2,2963.5,1.32675952]
[1731125695244,0.7776,2964.2,2962.8,0.8032]
[1731125695407,0.7776,2964.0,2963.1,1.32675952]
[1731125696896,0.7776,2964.0,2962.9,1.32675952]
[1731125697135,0.7776,2963.9,2962.9,1.32675952]
[1731125698047,0.7776,2963.9,2963.1,1.32675952]
[1731125698344,0.95356133,2963.9,2963.1,1.32675952]
[1731125701649,0.95356133,2963.9,2962.9,1.32675952]
[1731125705318,0.95356133,2963.9,2963.1,1.32675952]
[1731125708028,0.7776,2963.9,2963.5,1.32675952]
[1731125711273,0.7955,2964.2,2963.7,1.32675952]
[1731125713966,0.7955,2964.2,2963.5,2.12855952]
[1731125718384,0.7955,2964.2,2963.7,1.32675952]
[1731125718581,0.7955,2964.2,2963.7,1.53961547]
[1731125718893,0.7832,2964.4,2964.1,1.32675952]
[1731125719382,0.7832,2964.4,2963.9,1.32675952]
[1731125719577,0.7832,2964.4,2963.8,0.8097]
[1731125719757,0.7832,2964.4,2963.7,0.21285595]
[1731125719942,0.7832,2964.4,2963.8,0.23493155]
[1731125722972,0.7832,2964.4,2963.5,1.32675952]
[1731125724148,0.7832,2964.4,2963.4,0.8097]
[1731125724382,0.7832,2964.4,2963.5,1.32675952]
[1731125728058,0.7832,2964.2,2962.9,0.8097]
[1731125728370,0.7832,2964.2,2963.2,1.32675952]
[1731125728584,0.7832,2964.0,2963.2,1.32675952]
[1731125729092,0.7832,2964.0,2963.4,1.32675952]
[1731125740454,0.7832,2964.0,2963.4,1.35209442]
[1731125744060,0.7832,2964.0,2963.4,0.0253349]
[1731125745847,0.8327,2963.9,2963.4,0.0253349]
[1731125746141,0.8327,2963.8,2963.4,0.0253349]
[1731125750169,0.70341211,2963.9,2963.4,0.0253349]
[1731125750331,0.7832,2963.7,2963.4,0.0253349]
[1731125755786,0.7832,2963.7,2963.5,1.32675952]
[1731125755979,0.7832,2964.1,2963.6,0.8133]
[1731125756172,0.7832,2964.1,2963.7,1.32675952]
[1731125756487,0.7832,2964.4,2963.8,0.21400595]
[1731125756686,0.7832,2964.4,2963.8,0.0253349]
[1731125762203,0.7832,2964.4,2963.8,0.7981349]
[1731125763815,0.7832,2964.4,2963.8,0.0253349]
[1731125767532,0.7832,2964.4,2963.8,0.7981349]
[1731125774629,0.7832,2964.4,2963.8,0.7074929]
[1731125778061,0.05061171,2964.8,2964.3,1.32675952]
[1731125778260,0.31379591,2964.8,2964.2,0.8249]
[1731125779171,0.31379591,2964.8,2963.0,2.48102245]
[1731125779172,0.8227,2964.7,2963.8,0.8249]
[1731125780466,1.52611211,2964.7,2963.8,0.8249]
[1731125780664,0.42217857,2964.6,2963.8,0.8249]
[1731125781040,0.8327,2964.5,2963.8,0.8249]
[1731125781457,0.8327,2964.5,2963.6,1.32675952]
[1731125783470,0.8327,2964.5,2963.8,1.32675952]
[1731125783855,0.8327,2964.5,2963.9,0.79]
[1731125784263,1.60418786,2964.5,2963.9,0.79]
[1731125789065,0.8327,2964.5,2963.9,0.79]
[1731125795803,0.8327,2964.5,2963.8,1.32675952]
[1731125799575,0.7912,2964.4,2963.5,1.32675952]
[1731125799819,0.7912,2964.3,2963.5,1.32675952]
[1731125799986,0.7912,2964.2,2963.5,1.32675952]
[1731125800401,1.49461211,2964.2,2963.5,1.32675952]
[1731125802229,0.25497303,2964.1,2963.5,1.32675952]
[1731125803086,0.7912,2964.0,2963.5,1.32675952]
[1731125804007,0.7912,2964.0,2963.4,0.7843]
[1731125804008,0.7912,2964.0,2963.4,2.11105952]
[1731125804733,0.7912,2964.0,2963.4,1.32675952]
[1731125808615,0.7912,2964.0,2963.6,2.11105952]
[1731125810404,0.7912,2964.0,2963.8,1.32675952]
[1731125810743,0.7912,2964.2,2963.8,1.32675952]
[1731125811312,1.58666121,2964.2,2963.8,1.32675952]
[1731125812646,0.7912,2964.2,2963.8,1.32675952]
[1731125813145,0.7912,2964.2,2963.4,1.32675952]
[1731125813456,0.7912,2964.1,2963.4,1.32675952]
[1731125814488,0.7912,2964.1,2963.8,1.32675952]
[1731125814751,0.70341211,2964.4,2963.8,1.32675952]
[1731125814752,0.7912,2964.3,2963.8,1.32675952]
[1731125816423,0.7912,2964.3,2963.6,2.11105952]
[1731125817052,0.7912,2964.3,2963.6,0.7843]
[1731125817249,0.7912,2964.3,2962.7,3.0]
[1731125817250,0.7912,2964.3,2963.3,0.7843]
[1731125817563,0.7912,2964.2,2963.5,1.32675952]
[1731125820749,1.04617303,2964.2,2963.5,1.32675952]
[1731125821625,0.7692,2964.1,2963.3,0.7843]
[1731125821823,0.7692,2964.1,2963.3,1.32675952]
[1731125822534,0.7692,2964.0,2963.3,1.32675952]
[1731125824771,0.7692,2964.0,2963.5,1.32675952]
[1731125827481,0.94195851,2964.0,2963.5,1.32675952]
[1731125828677,0.94195851,2964.0,2963.3,1.32675952]
[1731125829682,0.94195851,2964.0,2963.1,0.7942]
[1731125829846,0.94195851,2964.0,2963.3,1.32675952]
[1731125832878,0.94195851,2964.0,2963.5,1.32675952]
[1731125834297,0.94195851,2964.0,2963.3,1.32675952]
[1731125841409,0.8326,2964.2,2963.9,1.32675952]
[1731125841711,0.8326,2964.2,2963.5,0.7939]
[1731125841712,0.70341211,2964.5,2964.1,2.12065952]
[1731125841884,0.8326,2964.6,2964.1,2.12065952]
[1731125842086,0.8326,2964.6,2963.4,3.7939]
[1731125842290,0.8326,2964.6,2963.7,1.32675952]
[1731125842492,0.8326,2964.6,2963.9,1.32675952]
[1731125842788,0.8326,2964.6,2963.9,2.12065952]
[1731125844602,0.8326,2964.6,2963.9,1.32675952]
[1731125847115,0.8326,2964.6,2963.7,2.12065952]
[1731125851717,0.8326,2964.6,2963.9,1.32675952]
[1731125854936,0.8326,2964.6,2963.7,1.32675952]
[1731125859550,0.8326,2964.6,2963.9,1.32675952]
[1731125859713,0.8326,2964.6,2964.1,1.32675952]
[1731125859920,0.8326,2964.6,2963.9,1.32675952]
[1731125860743,0.8326,2964.6,2963.7,1.32675952]
[1731125860955,0.8326,2964.6,2963.7,1.53884547]
[1731125861150,0.8326,2964.6,2963.7,1.32675952]
[1731125861843,0.8326,2964.6,2963.7,1.39423431]
[1731125862409,0.8326,2964.6,2963.7,1.32675952]
[1731125871351,0.8326,2964.6,2964.3,1.32675952]
[1731125871559,0.8326,2964.6,2964.0,0.8023]
[1731125871849,0.8326,2964.6,2964.0,1.32675952]
[1731125874266,0.8326,2964.6,2963.5,0.8023]
[1731125874421,0.8326,2964.6,2963.6,1.32675952]
[1731125876165,0.7745,2964.4,2963.5,1.32675952]
[1731125876461,0.7745,2964.2,2963.5,1.32675952]
[1731125876647,0.7745,2964.2,2963.1,0.24821256]
[1731125876971,0.7745,2964.1,2963.2,1.32675952]
[1731125877257,0.7745,2964.0,2963.4,1.32675952]
[1731125885679,0.7745,2964.0,2962.9,3.8023]
[1731125885680,0.7745,2964.0,2962.9,0.8023]
[1731125885884,0.8086,2963.9,2963.2,1.32675952]
[1731125887090,0.8086,2963.9,2962.6,0.41259179]
[1731125887281,0.8086,2963.9,2963.2,1.32675952]
[1731125888801,0.8086,2963.9,2963.4,1.32675952]
[1731125888952,0.8086,2963.9,2963.4,2.12755952]
[1731125889289,0.8086,2963.9,2963.5,0.21275595]
[1731125889584,0.8086,2963.9,2963.4,2.12755952]
[1731125890090,0.8086,2963.9,2963.4,1.32675952]
[1731125892751,0.8086,2963.9,2963.4,2.12755952]
[1731125893550,0.8086,2963.9,2963.4,1.32675952]
[1731125894058,0.8086,2963.9,2963.2,0.8008]
[1731125894059,0.8086,2963.9,2963.2,1.32675952]
[1731125894885,0.7755,2963.9,2962.8,1.32675952]
[1731125895093,0.55,2963.8,2962.8,1.32675952]
[1731125895255,0.7755,2963.7,2962.8,1.32675952]
[1731125895676,0.7755,2963.7,2963.0,1.32675952]
[1731125897890,0.7755,2963.5,2962.7,1.32675952]
[1731125905020,0.7755,2963.5,2962.6,1.73935131]
[1731125907183,0.7755,2963.5,2962.8,1.32675952]
[1731125907389,0.7755,2963.5,2963.0,1.32675952]
[1731125908124,0.7755,2963.5,2962.8,1.32675952]
[1731125910804,0.7755,2963.5,2962.6,0.41259179]
[1731125911015,0.7755,2963.5,2962.7,1.32675952]
[1731125923921,0.7755,2963.5,2962.6,0.41259179]
[1731125923922,0.70341211,2963.5,2962.6,0.41259179]
[1731125924106,0.785,2963.3,2962.6,0.41259179]
[1731125928029,0.785,2963.3,2962.7,1.32675952]
[1731125933610,0.785,2963.3,2962.6,0.41259179]
[1731125933803,0.785,2963.3,2962.6,1.73935131]
[1731125937022,0.785,2963.3,2962.6,0.41259179]
[1731125938250,0.7581,2963.1,2962.6,0.41259179]
[1731125938420,1.46151211,2963.0,2962.6,0.41259179]
[1731125938758,0.7581,2962.9,2962.6,0.41259179]
[1731125940517,1.46151211,2962.8,2962.6,0.41259179]
[1731125940749,0.7581,2962.7,2962.6,0.41259179]
[1731125940961,1.00976303,2962.7,2962.6,0.41259179]
[1731125941251,1.71317514,2962.7,2962.6,0.41259179]
[1731125941445,1.00976303,2962.7,2962.6,0.41259179]
[1731125941954,0.7581,2962.7,2962.6,0.41259179]
[1731125944219,1.60511817,2963.2,2962.6,0.41259179]
[1731125944220,0.7581,2962.9,2962.6,0.41259179]
[1731125944413,0.7581,2963.1,2962.6,0.41259179]
[1731125946153,0.7581,2963.1,2962.6,1.23299179]
[1731125946313,0.7581,2963.3,2962.9,1.32675952]
[1731125948377,7.16341211,2963.9,2963.2,0.8204]
[1731125948650,6.46,2963.9,2963.4,1.32675952]
[1731125949724,6.46,2964.0,2963.4,1.32675952]
[1731125950159,7.16341211,2964.3,2963.8,2.14715952]
[1731125950464,0.7581,2964.5,2963.8,2.14715952]
[1731125950617,6.46,2964.6,2963.8,2.36187547]
[1731125951021,0.7581,2964.7,2964.0,1.32675952]
[1731125951270,7.2181,2964.7,2964.0,1.32675952]
[1731125951418,0.7581,2964.7,2964.0,1.32675952]
[1731125951623,6.46,2964.8,2964.2,1.32675952]
[1731125951923,0.79215121,2964.8,2964.0,1.32675952]
[1731125952431,7.25215121,2964.8,2964.0,1.32675952]
[1731125953456,7.25215121,2964.8,2963.8,2.36187547]
[1731125953665,0.7581,2964.7,2963.8,2.36187547]
[1731125957372,7.2181,2964.7,2963.8,2.36187547]
[1731125958364,8.01912512,2964.7,2963.8,2.36187547]
[1731125960541,1.55912512,2964.7,2963.8,2.36187547]
[1731125960749,0.7581,2964.7,2963.8,2.36187547]
[1731125961369,0.7581,2964.7,2963.8,2.14715952]
[1731125962677,0.8108,2965.0,2964.0,1.32675952]
[1731125962972,0.8108,2965.0,2964.1,0.7872]
[1731125966874,1.32675952,2964.9,2964.1,0.7872]
[1731125967374,0.8108,2965.0,2964.1,0.7872]
[1731125967581,0.21375595,2964.9,2964.1,0.7872]
[1731125973946,1.54051547,2964.9,2964.1,0.7872]
[1731125974256,1.32675952,2964.9,2964.1,0.7872]
[1731125984283,0.8108,2965.0,2964.1,0.7872]
[1731125986377,1.32675952,2965.1,2964.1,0.7872]
[1731125986581,0.55,2965.1,2964.1,0.7872]
[1731125986905,0.55,2965.1,2964.2,0.8073]
[1731125986906,1.76581595,2965.1,2964.2,0.8073]
[1731125987133,3.09257547,2965.1,2964.2,0.8073]
[1731125991295,1.21581595,2965.1,2964.4,0.8073]
[1731125991500,1.91922806,2965.1,2964.4,0.8073]
[1731125991706,0.27406281,2965.0,2964.4,0.8073]
[1731125992840,0.97747492,2965.0,2964.4,0.8073]
[1731125994250,0.70341211,2964.9,2964.4,0.8073]
[1731125995230,0.70341211,2964.8,2964.4,0.8073]
[1731125996551,0.70341211,2964.7,2964.4,0.8073]
[1731125998124,0.70341211,2964.8,2964.4,0.8073]
[1731125998365,1.05511817,2964.9,2964.4,0.8073]
[1731125998366,0.70341211,2964.7,2964.4,0.8073]
[1731125999245,0.70341211,2964.8,2964.4,0.8073]
[1731126000422,0.70341211,2964.9,2964.4,0.8073]
[1731126000622,0.70341211,2964.9,2964.4,1.08816651]
[1731126000858,0.70341211,2965.0,2964.5,0.8312]
[1731126001057,0.70341211,2965.1,2964.6,0.8312]
[1731126001257,0.70341211,2965.0,2964.6,0.8312]
[1731126002532,1.05511817,2965.2,2964.6,0.8312]
[1731126002533,0.70341211,2965.1,2964.6,0.8312]
[1731126002825,0.70341211,2965.1,2965.0,1.32675952]
[1731126003039,1.76359545,2965.7,2965.0,1.32675952]
[1731126003040,0.70341211,2965.6,2965.1,0.8312]
[1731126003240,0.70341211,2965.7,2965.3,0.8312]
[1731126003447,0.75401774,2965.9,2965.3,0.8312]
[1731126003652,0.70341211,2965.8,2965.3,0.8312]
[1731126004053,0.75401774,2965.9,2965.3,0.8312]
[1731126004445,0.05060563,2965.9,2965.3,0.8312]
[1731126004862,0.05060563,2965.9,2965.3,1.32675952]
[1731126005036,0.05060563,2965.9,2965.6,0.8312]
[1731126005229,0.05060563,2965.9,2965.8,0.8312]
[1731126006961,0.05060563,2965.9,2965.8,2.15795952]
[1731126010732,0.05060563,2965.9,2965.8,2.22537356]
[1731126010982,0.7679,2967.5,2966.0,0.8312]
[1731126011188,7.2279,2967.8,2966.9,0.8312]
[1731126011355,0.7679,2967.8,2966.9,0.8312]
[1731126013280,0.7679,2967.8,2967.0,1.32675952]
[1731126013664,0.7679,2968.2,2967.0,1.32675952]
[1731126013912,0.7679,2968.2,2967.2,1.32675952]
[1731126014050,0.7679,2968.2,2966.5,3.0]
[1731126014051,0.7679,2968.2,2967.5,0.8312]
[1731126014573,0.7679,2968.2,2967.1,0.8312]
[1731126020051,0.7679,2968.2,2967.3,0.809]
[1731126020256,0.7679,2968.2,2967.4,0.0673904]
[1731126020582,0.7679,2968.2,2967.3,0.809]
[1731126020757,0.7679,2968.2,2967.4,0.21357595]
[1731126023668,0.7679,2968.2,2967.3,0.809]
[1731126026097,0.7679,2968.2,2967.4,0.06739094]
[1731126027716,0.7679,2968.2,2967.3,0.809]
[1731126028576,0.7679,2968.2,2967.6,1.32675952]
[1731126028908,0.05030844,2968.6,2967.7,0.8033]
[1731126029078,0.05030844,2968.6,2967.8,0.21300595]
[1731126029079,0.8285,2968.5,2967.8,0.21300595]
[1731126032180,0.8285,2968.5,2967.7,0.8033]
[1731126043751,0.8285,2968.5,2967.9,1.32675952]
[1731126043905,0.05030844,2968.6,2968.1,1.32675952]